[Event "Early-Titled-Tuesday-Blitz-October-10-2023"]
[Site "Chess.com"]
[Date "2023.10.10"]
[Round "7"]
[White "BlueWizzard"]
[Black "Korchmar_Vasiliy"]
[Result "1-0"]
[WhiteElo "2922"]
[BlackElo "2738"]
[TimeControl "180+1"]
[EndTime "9:14:32 PDT"]
[Termination "BlueWizzard won by resignation"]

1. d4 {[%clk 0:03:00.9]} 1... Nf6 {[%clk 0:02:59.8]} 2. Nc3 {[%clk 0:03:01.6]}
2... d5 {[%clk 0:02:59.7]} 3. Bg5 {[%clk 0:03:02.3]} 3... Nbd7 {[%clk
0:02:58.4]} 4. Nf3 {[%clk 0:03:02.1]} 4... a6 {[%clk 0:02:53.2]} 5. Qd3 {[%clk
0:03:00.1]} 5... b5 {[%clk 0:02:51.3]} 6. e4 {[%clk 0:03:00.2]} 6... dxe4 {[%clk
0:02:42]} 7. Nxe4 {[%clk 0:03:01.1]} 7... Bb7 {[%clk 0:02:41.9]} 8. Ng3 {[%clk
0:02:51.2]} 8... e6 {[%clk 0:02:34]} 9. Nh5 {[%clk 0:02:41]} 9... h6 {[%clk
0:02:00.2]} 10. Bh4 {[%clk 0:02:37.1]} 10... g5 {[%clk 0:01:58.7]} 11. Nxf6+
{[%clk 0:02:36.2]} 11... Qxf6 {[%clk 0:01:45]} 12. Bg3 {[%clk 0:02:36.7]} 12...
c5 {[%clk 0:01:45.3]} 13. Ne5 {[%clk 0:02:32.3]} 13... Nb6 {[%clk 0:01:15]} 14.
Ng4 {[%clk 0:01:46.3]} 14... Qf5 {[%clk 0:01:07.1]} 15. Qxf5 {[%clk 0:01:30.3]}
15... exf5 {[%clk 0:01:08]} 16. Be5 {[%clk 0:01:30.9]} 16... fxg4 {[%clk
0:00:57.4]} 17. Bxh8 {[%clk 0:01:30.6]} 17... O-O-O {[%clk 0:00:49.3]} 18. O-O-O
{[%clk 0:01:30.2]} 18... Bd6 {[%clk 0:00:42.8]} 19. Be5 {[%clk 0:01:18.9]} 19...
Bxe5 {[%clk 0:00:20]} 20. dxe5 {[%clk 0:01:19.8]} 20... Re8 {[%clk 0:00:20.6]}
21. Be2 {[%clk 0:00:59.1]} 21... h5 {[%clk 0:00:18.6]} 22. f3 {[%clk 0:00:52.6]}
22... Rxe5 {[%clk 0:00:17]} 23. Rhe1 {[%clk 0:00:53.2]} 23... f5 {[%clk
0:00:10.8]} 24. fxg4 {[%clk 0:00:51.8]} 24... hxg4 {[%clk 0:00:09.7]} 25. Bxg4
{[%clk 0:00:51]} 25... Rxe1 {[%clk 0:00:02.1]} 26. Bxf5+ {[%clk 0:00:50.7]}
26... Kc7 {[%clk 0:00:02.7]} 27. Rxe1 {[%clk 0:00:50.6]} 27... Bxg2 {[%clk
0:00:02.6]} 28. Rg1 {[%clk 0:00:49.7]} 1-0

[Event "Early-Titled-Tuesday-Blitz-October-10-2023"]
[Site "Chess.com"]
[Date "2023.10.10"]
[Round "7"]
[White "boasovietica"]
[Black "falzehope0"]
[Result "1-0"]
[WhiteElo "2516"]
[BlackElo "2317"]
[TimeControl "180+1"]
[EndTime "9:14:33 PDT"]
[Termination "boasovietica won by resignation"]

1. e4 {[%clk 0:03:00.9]} 1... d5 {[%clk 0:02:57.8]} 2. exd5 {[%clk 0:02:58.1]}
2... Nf6 {[%clk 0:02:58.1]} 3. d4 {[%clk 0:02:54.4]} 3... Qxd5 {[%clk
0:02:57.5]} 4. Nf3 {[%clk 0:02:53.5]} 4... Bg4 {[%clk 0:02:56.6]} 5. Be2 {[%clk
0:02:50.8]} 5... Nc6 {[%clk 0:02:56.5]} 6. Be3 {[%clk 0:02:50.4]} 6... O-O-O
{[%clk 0:02:55.8]} 7. Nbd2 {[%clk 0:02:45.5]} 7... e6 {[%clk 0:02:50.1]} 8. c4
{[%clk 0:02:41.3]} 8... Qf5 {[%clk 0:02:46.7]} 9. Qa4 {[%clk 0:02:32.6]} 9...
Bb4 {[%clk 0:02:38.3]} 10. O-O-O {[%clk 0:01:55.6]} 10... Bxd2+ {[%clk
0:02:20.6]} 11. Rxd2 {[%clk 0:01:49.6]} 11... Ne4 {[%clk 0:02:20]} 12. Rdd1
{[%clk 0:01:46.4]} 12... a6 {[%clk 0:02:05.7]} 13. h3 {[%clk 0:01:42.5]} 13...
Bxf3 {[%clk 0:02:03.6]} 14. Bxf3 {[%clk 0:01:40.4]} 14... Ng5 {[%clk 0:01:55.7]}
15. Bxc6 {[%clk 0:01:29.7]} 15... bxc6 {[%clk 0:01:54.9]} 16. Qxc6 {[%clk
0:01:22.4]} 16... Qa5 {[%clk 0:01:32.5]} 17. Kb1 {[%clk 0:01:10.9]} 17... h6
{[%clk 0:01:28.7]} 18. d5 {[%clk 0:01:05]} 18... exd5 {[%clk 0:01:25.9]} 19.
Qa8+ {[%clk 0:01:04.5]} 19... Kd7 {[%clk 0:01:24]} 20. Rxd5+ {[%clk 0:01:05]}
20... Qxd5 {[%clk 0:01:22.5]} 21. Qxd5+ {[%clk 0:01:04.5]} 21... Ke7 {[%clk
0:01:21.5]} 22. Bxg5+ {[%clk 0:01:04.6]} 22... hxg5 {[%clk 0:01:20.7]} 23. Re1+
{[%clk 0:01:02.7]} 23... Kf6 {[%clk 0:01:16.8]} 24. Qe5+ {[%clk 0:01:03]} 24...
Kg6 {[%clk 0:01:16.9]} 25. Qxc7 {[%clk 0:01:02.8]} 25... Rd2 {[%clk 0:01:14.3]}
26. Qc6+ {[%clk 0:01:01]} 26... f6 {[%clk 0:01:13.1]} 27. Qe4+ {[%clk
0:01:01.5]} 27... Kh6 {[%clk 0:01:13.1]} 28. h4 {[%clk 0:01:00.1]} 28... Rhd8
{[%clk 0:00:45.3]} 29. hxg5+ {[%clk 0:00:57.1]} 29... Kxg5 {[%clk 0:00:46.2]}
30. Kc1 {[%clk 0:00:49.1]} 30... a5 {[%clk 0:00:44.5]} 31. Qe3+ {[%clk 0:00:49]}
31... Kg6 {[%clk 0:00:43.9]} 32. Qxd2 {[%clk 0:00:49]} 32... Rxd2 {[%clk
0:00:44.3]} 33. Kxd2 {[%clk 0:00:49.9]} 33... a4 {[%clk 0:00:44.6]} 34. c5
{[%clk 0:00:49.8]} 34... Kf7 {[%clk 0:00:45]} 35. c6 {[%clk 0:00:49.8]} 35... a3
{[%clk 0:00:45.9]} 36. bxa3 {[%clk 0:00:49.7]} 36... Kg6 {[%clk 0:00:46]} 37. c7
{[%clk 0:00:49.6]} 37... Kg5 {[%clk 0:00:44.5]} 38. c8=Q {[%clk 0:00:49.1]}
38... Kg6 {[%clk 0:00:44.5]} 39. Qg4+ {[%clk 0:00:48.3]} 39... Kf7 {[%clk
0:00:44.4]} 40. Rb1 {[%clk 0:00:48.4]} 40... g5 {[%clk 0:00:43.8]} 41. Qf5
{[%clk 0:00:47.8]} 41... Kg7 {[%clk 0:00:43]} 42. Rb7+ {[%clk 0:00:47.9]} 42...
Kf8 {[%clk 0:00:37.8]} 43. Qxf6+ {[%clk 0:00:47.6]} 1-0

[Event "Early-Titled-Tuesday-Blitz-October-10-2023"]
[Site "Chess.com"]
[Date "2023.10.10"]
[Round "7"]
[White "lefonghua"]
[Black "Krlence"]
[Result "1-0"]
[WhiteElo "2611"]
[BlackElo "2446"]
[TimeControl "180+1"]
[EndTime "9:14:47 PDT"]
[Termination "lefonghua won by resignation"]

1. d4 {[%clk 0:03:00.9]} 1... d6 {[%clk 0:02:59.5]} 2. e4 {[%clk 0:03:00.1]}
2... Nf6 {[%clk 0:02:58.7]} 3. f3 {[%clk 0:03:00.1]} 3... e5 {[%clk 0:02:58.8]}
4. Ne2 {[%clk 0:03:00]} 4... Nbd7 {[%clk 0:02:57.7]} 5. c4 {[%clk 0:03:00.3]}
5... Be7 {[%clk 0:02:57.5]} 6. Nbc3 {[%clk 0:03:00.7]} 6... c6 {[%clk
0:02:57.6]} 7. Be3 {[%clk 0:03:01.1]} 7... O-O {[%clk 0:02:57.3]} 8. Qd2 {[%clk
0:03:01.7]} 8... a5 {[%clk 0:02:56.2]} 9. d5 {[%clk 0:02:57]} 9... Qc7 {[%clk
0:02:55]} 10. Ng3 {[%clk 0:02:55.9]} 10... Re8 {[%clk 0:02:54]} 11. Be2 {[%clk
0:02:54.5]} 11... Nf8 {[%clk 0:02:23.6]} 12. O-O {[%clk 0:02:52.2]} 12... Ng6
{[%clk 0:02:21.2]} 13. Rfd1 {[%clk 0:02:49.5]} 13... Rd8 {[%clk 0:02:14.6]} 14.
Nf5 {[%clk 0:02:42.7]} 14... Bxf5 {[%clk 0:02:07.4]} 15. exf5 {[%clk 0:02:42.7]}
15... Nf8 {[%clk 0:02:06.6]} 16. Ne4 {[%clk 0:02:37.8]} 16... Nxe4 {[%clk
0:01:55.5]} 17. fxe4 {[%clk 0:02:37.7]} 17... c5 {[%clk 0:01:55.8]} 18. g4
{[%clk 0:02:33]} 18... a4 {[%clk 0:01:52.9]} 19. Qe1 {[%clk 0:02:27.9]} 19...
Nd7 {[%clk 0:01:50.1]} 20. g5 {[%clk 0:02:24.1]} 20... Bf8 {[%clk 0:01:24.8]}
21. Qg3 {[%clk 0:02:20.4]} 21... Rac8 {[%clk 0:01:17.5]} 22. h4 {[%clk 0:02:20]}
22... b5 {[%clk 0:01:17.2]} 23. cxb5 {[%clk 0:02:16.8]} 23... c4 {[%clk
0:01:16.9]} 24. Rac1 {[%clk 0:02:15.5]} 24... Qa5 {[%clk 0:01:12]} 25. Bxc4
{[%clk 0:02:07.4]} 25... Qb4 {[%clk 0:01:11]} 26. b3 {[%clk 0:02:05.7]} 26...
axb3 {[%clk 0:01:10.6]} 27. axb3 {[%clk 0:02:06.2]} 27... Nc5 {[%clk 0:01:09.6]}
28. Bxc5 {[%clk 0:02:05.9]} 28... Qxc5+ {[%clk 0:01:07.1]} 29. Qf2 {[%clk
0:02:05.9]} 29... Qb4 {[%clk 0:01:04.6]} 30. Ra1 {[%clk 0:02:01.9]} 30... Ra8
{[%clk 0:01:04.2]} 31. Ra6 {[%clk 0:02:00.8]} 31... Rab8 {[%clk 0:00:52.1]} 32.
f6 {[%clk 0:01:50.6]} 32... gxf6 {[%clk 0:00:49.7]} 33. Qxf6 {[%clk 0:01:48]}
33... Bg7 {[%clk 0:00:49.8]} 34. Qf5 {[%clk 0:01:44.9]} 34... Qc5+ {[%clk
0:00:48.2]} 35. Kg2 {[%clk 0:01:45.2]} 35... Rxb5 {[%clk 0:00:39.3]} 36. Bxb5
{[%clk 0:01:39.8]} 36... Qxb5 {[%clk 0:00:40.2]} 37. Ra2 {[%clk 0:01:31.5]}
37... Qxb3 {[%clk 0:00:39]} 38. Rdd2 {[%clk 0:01:30.1]} 38... Qc4 {[%clk
0:00:17.6]} 39. Rf2 {[%clk 0:01:27.4]} 39... Rf8 {[%clk 0:00:16.3]} 40. Ra7
{[%clk 0:01:25.3]} 40... Kh8 {[%clk 0:00:15.5]} 41. h5 {[%clk 0:01:17.8]} 41...
h6 {[%clk 0:00:14.1]} 42. g6 {[%clk 0:01:09.7]} 42... Qd4 {[%clk 0:00:09.1]} 43.
Rxf7 {[%clk 0:01:06.8]} 1-0

[Event "Early-Titled-Tuesday-Blitz-October-10-2023"]
[Site "Chess.com"]
[Date "2023.10.10"]
[Round "7"]
[White "C_K_G"]
[Black "tarno17"]
[Result "1-0"]
[WhiteElo "1941"]
[BlackElo "2133"]
[TimeControl "180+1"]
[EndTime "9:14:48 PDT"]
[Termination "C_K_G won by checkmate"]

1. e4 {[%clk 0:03:00.9]} 1... c5 {[%clk 0:02:59.7]} 2. Nf3 {[%clk 0:03:01.1]}
2... e6 {[%clk 0:03:00.1]} 3. d4 {[%clk 0:03:00.8]} 3... cxd4 {[%clk 0:03:00.5]}
4. Nxd4 {[%clk 0:03:01.7]} 4... a6 {[%clk 0:03:01]} 5. Nc3 {[%clk 0:03:02.1]}
5... Qc7 {[%clk 0:03:01.5]} 6. Be2 {[%clk 0:03:02.6]} 6... b5 {[%clk 0:03:02]}
7. a3 {[%clk 0:03:00.5]} 7... Bb7 {[%clk 0:03:02]} 8. f4 {[%clk 0:02:56.2]} 8...
d6 {[%clk 0:02:55.7]} 9. Be3 {[%clk 0:02:53.6]} 9... Nf6 {[%clk 0:02:55.7]} 10.
Bf3 {[%clk 0:02:53.5]} 10... Be7 {[%clk 0:02:54.4]} 11. O-O {[%clk 0:02:53.4]}
11... Nbd7 {[%clk 0:02:50.9]} 12. Qe2 {[%clk 0:02:49.7]} 12... O-O {[%clk
0:02:44.2]} 13. g4 {[%clk 0:02:49.1]} 13... Nc5 {[%clk 0:02:38.3]} 14. Qg2
{[%clk 0:02:47]} 14... Rfd8 {[%clk 0:02:24.4]} 15. g5 {[%clk 0:02:44.2]} 15...
Ne8 {[%clk 0:02:20]} 16. f5 {[%clk 0:02:31.8]} 16... e5 {[%clk 0:02:11.6]} 17.
Nde2 {[%clk 0:02:18.6]} 17... Qd7 {[%clk 0:01:28.2]} 18. Rad1 {[%clk 0:02:15.5]}
18... Nc7 {[%clk 0:01:21]} 19. Bxc5 {[%clk 0:02:14.8]} 19... Qc6 {[%clk
0:01:11.2]} 20. Be3 {[%clk 0:02:10.4]} 20... a5 {[%clk 0:01:11.5]} 21. Ng3
{[%clk 0:01:59.9]} 21... b4 {[%clk 0:01:11]} 22. axb4 {[%clk 0:01:59]} 22...
axb4 {[%clk 0:01:11.9]} 23. Nd5 {[%clk 0:01:58.6]} 23... Nxd5 {[%clk 0:01:09.7]}
24. exd5 {[%clk 0:01:59]} 24... Qc4 {[%clk 0:01:02.5]} 25. f6 {[%clk 0:01:53.3]}
25... Bf8 {[%clk 0:01:00.8]} 26. fxg7 {[%clk 0:01:52.9]} 26... Bxg7 {[%clk
0:01:00.5]} 27. Nf5 {[%clk 0:01:53.1]} 27... Ra2 {[%clk 0:00:34.8]} 28. Bc1
{[%clk 0:01:32.6]} 28... Bc8 {[%clk 0:00:14.9]} 29. Nxg7 {[%clk 0:01:21.3]}
29... Kxg7 {[%clk 0:00:15.8]} 30. Be4 {[%clk 0:01:21.1]} 30... b3 {[%clk
0:00:07.7]} 31. cxb3 {[%clk 0:01:17.2]} 31... Qc5+ {[%clk 0:00:07]} 32. Kh1
{[%clk 0:01:16]} 32... Ba6 {[%clk 0:00:03.8]} 33. Rf2 {[%clk 0:01:11.4]} 33...
Ra1 {[%clk 0:00:03.5]} 34. Rc2 {[%clk 0:01:11.4]} 34... Qb4 {[%clk 0:00:02.3]}
35. Qf3 {[%clk 0:01:07.4]} 35... Rg8 {[%clk 0:00:01.9]} 36. Rc7 {[%clk
0:01:06.5]} 36... Rf8 {[%clk 0:00:02.3]} 37. Qf5 {[%clk 0:01:03.6]} 37... h6
{[%clk 0:00:01.5]} 38. Qh7# {[%clk 0:01:03.4]} 1-0

[Event "Early-Titled-Tuesday-Blitz-October-10-2023"]
[Site "Chess.com"]
[Date "2023.10.10"]
[Round "7"]
[White "Byniolus"]
[Black "Actuary44"]
[Result "1-0"]
[WhiteElo "2729"]
[BlackElo "2529"]
[TimeControl "180+1"]
[EndTime "9:14:50 PDT"]
[Termination "Byniolus won by resignation"]

1. d4 {[%clk 0:03:00.9]} 1... Nf6 {[%clk 0:03:00.1]} 2. Nf3 {[%clk 0:03:00.7]}
2... g6 {[%clk 0:03:00.7]} 3. Bf4 {[%clk 0:03:00.6]} 3... Bg7 {[%clk 0:03:01.1]}
4. e3 {[%clk 0:03:00.9]} 4... d6 {[%clk 0:03:01.8]} 5. h3 {[%clk 0:03:01]} 5...
O-O {[%clk 0:03:02.4]} 6. Be2 {[%clk 0:03:01.3]} 6... Nfd7 {[%clk 0:03:03.1]} 7.
O-O {[%clk 0:03:01.4]} 7... Nc6 {[%clk 0:03:03.7]} 8. Bh2 {[%clk 0:03:02.3]}
8... e5 {[%clk 0:03:03.8]} 9. c4 {[%clk 0:03:03.2]} 9... f5 {[%clk 0:03:03.2]}
10. Nc3 {[%clk 0:03:03.3]} 10... e4 {[%clk 0:03:00.3]} 11. Nd2 {[%clk
0:03:03.3]} 11... Ne7 {[%clk 0:03:00.1]} 12. b4 {[%clk 0:03:03.2]} 12... g5
{[%clk 0:02:55.7]} 13. Rc1 {[%clk 0:03:02.7]} 13... Nf6 {[%clk 0:02:55.5]} 14.
Re1 {[%clk 0:03:02.4]} 14... c6 {[%clk 0:02:53.8]} 15. d5 {[%clk 0:02:53.9]}
15... cxd5 {[%clk 0:02:51.2]} 16. cxd5 {[%clk 0:02:54.8]} 16... Kh8 {[%clk
0:02:48.4]} 17. Nc4 {[%clk 0:02:54.1]} 17... f4 {[%clk 0:02:41.9]} 18. exf4
{[%clk 0:02:52.1]} 18... gxf4 {[%clk 0:02:12.2]} 19. Bxf4 {[%clk 0:02:53]} 19...
Ne8 {[%clk 0:01:33.2]} 20. Bh2 {[%clk 0:02:41.8]} 20... Bf5 {[%clk 0:01:21.1]}
21. Bf1 {[%clk 0:02:26.9]} 21... Ng6 {[%clk 0:00:53.3]} 22. Nxe4 {[%clk
0:02:24.3]} 22... Bxe4 {[%clk 0:00:42.8]} 23. Rxe4 {[%clk 0:02:25.2]} 23... Qg5
{[%clk 0:00:39.1]} 24. Nxd6 {[%clk 0:01:33.7]} 24... Qf6 {[%clk 0:00:28.6]} 25.
Nxe8 {[%clk 0:01:21.2]} 25... Qxf2+ {[%clk 0:00:28.5]} 26. Kh1 {[%clk
0:01:21.9]} 26... Raxe8 {[%clk 0:00:28.9]} 27. Rxe8 {[%clk 0:01:18.6]} 27...
Rxe8 {[%clk 0:00:29.8]} 28. d6 {[%clk 0:01:15.1]} 28... Rd8 {[%clk 0:00:26.8]}
29. Qc2 {[%clk 0:01:06.5]} 29... Qb6 {[%clk 0:00:20.4]} 30. Qc7 {[%clk
0:01:01.9]} 30... Qxc7 {[%clk 0:00:15]} 31. dxc7 {[%clk 0:01:00.6]} 31... Rc8
{[%clk 0:00:15.3]} 32. Rd1 {[%clk 0:00:42.6]} 32... Bf6 {[%clk 0:00:14.8]} 33.
Be2 {[%clk 0:00:39.7]} 33... Ne5 {[%clk 0:00:11.3]} 34. Bxe5 {[%clk 0:00:40]}
34... Bxe5 {[%clk 0:00:12.2]} 35. Rd8+ {[%clk 0:00:40.3]} 1-0

[Event "Early-Titled-Tuesday-Blitz-October-10-2023"]
[Site "Chess.com"]
[Date "2023.10.10"]
[Round "7"]
[White "subham777"]
[Black "lluiss"]
[Result "1-0"]
[WhiteElo "2512"]
[BlackElo "2199"]
[TimeControl "180+1"]
[EndTime "9:14:58 PDT"]
[Termination "subham777 won on time"]

1. e4 {[%clk 0:03:00.9]} 1... c5 {[%clk 0:02:59]} 2. Nf3 {[%clk 0:03:01]} 2...
d6 {[%clk 0:02:59]} 3. d4 {[%clk 0:03:00.8]} 3... cxd4 {[%clk 0:02:59.1]} 4.
Qxd4 {[%clk 0:03:01.6]} 4... Nc6 {[%clk 0:02:58.1]} 5. Bb5 {[%clk 0:03:00.3]}
5... Bd7 {[%clk 0:02:58]} 6. Bxc6 {[%clk 0:03:00.4]} 6... Bxc6 {[%clk
0:02:58.1]} 7. c4 {[%clk 0:03:00.7]} 7... f5 {[%clk 0:02:56]} 8. exf5 {[%clk
0:02:51.7]} 8... Qa5+ {[%clk 0:02:55.1]} 9. Nc3 {[%clk 0:02:50.3]} 9... Qxf5
{[%clk 0:02:55]} 10. Qe3 {[%clk 0:02:45.9]} 10... Nf6 {[%clk 0:02:25.5]} 11. Bd2
{[%clk 0:02:29.8]} 11... Ng4 {[%clk 0:02:18.4]} 12. Qe2 {[%clk 0:02:29.5]} 12...
Bxf3 {[%clk 0:02:16.4]} 13. gxf3 {[%clk 0:02:27.2]} 13... Ne5 {[%clk 0:02:16.5]}
14. f4 {[%clk 0:02:03.6]} 14... Nd3+ {[%clk 0:02:13.1]} 15. Kf1 {[%clk
0:02:03.7]} 15... O-O-O {[%clk 0:01:39.9]} 16. Qe3 {[%clk 0:01:52.8]} 16... Kb8
{[%clk 0:01:16.1]} 17. Nb5 {[%clk 0:01:47.6]} 17... b6 {[%clk 0:00:50.2]} 18.
Nd4 {[%clk 0:01:44.8]} 18... Qg6 {[%clk 0:00:43.4]} 19. f5 {[%clk 0:01:39.7]}
19... Qe8 {[%clk 0:00:27.7]} 20. Qxd3 {[%clk 0:01:37.6]} 20... g6 {[%clk
0:00:27.6]} 21. fxg6 {[%clk 0:01:35.6]} 21... hxg6 {[%clk 0:00:26.9]} 22. Qe4
{[%clk 0:01:31.7]} 22... Rc8 {[%clk 0:00:21.1]} 23. b3 {[%clk 0:01:25.4]} 23...
e5 {[%clk 0:00:20.8]} 24. Nf3 {[%clk 0:01:23.4]} 24... Bh6 {[%clk 0:00:16.2]}
25. Bxh6 {[%clk 0:01:21.5]} 25... Rxh6 {[%clk 0:00:17.1]} 26. Rd1 {[%clk
0:01:19.4]} 26... Qe7 {[%clk 0:00:16.6]} 27. Qd5 {[%clk 0:01:17]} 27... Rf8
{[%clk 0:00:16.2]} 28. Rg1 {[%clk 0:01:05.5]} 28... Rh7 {[%clk 0:00:14]} 29. Rg3
{[%clk 0:01:02.8]} 29... Rhf7 {[%clk 0:00:14.1]} 30. Qxd6+ {[%clk 0:00:50.9]}
30... Qxd6 {[%clk 0:00:13.6]} 31. Rxd6 {[%clk 0:00:51.8]} 31... Rxf3 {[%clk
0:00:13.7]} 32. Rxf3 {[%clk 0:00:52.7]} 32... Rxf3 {[%clk 0:00:12.9]} 33. Rxg6
{[%clk 0:00:53.2]} 33... e4 {[%clk 0:00:09.4]} 34. Kg2 {[%clk 0:00:53.2]} 34...
Rd3 {[%clk 0:00:09.3]} 35. h4 {[%clk 0:00:52.7]} 35... Rd2 {[%clk 0:00:09.2]}
36. Kg3 {[%clk 0:00:49.4]} 36... Rxa2 {[%clk 0:00:08.3]} 37. h5 {[%clk
0:00:49.7]} 37... Ra3 {[%clk 0:00:08.4]} 38. h6 {[%clk 0:00:47.4]} 38... Rxb3+
{[%clk 0:00:08.1]} 39. Kg2 {[%clk 0:00:48]} 1-0

[Event "Early-Titled-Tuesday-Blitz-October-10-2023"]
[Site "Chess.com"]
[Date "2023.10.10"]
[Round "7"]
[White "Manukyan_Artak"]
[Black "Roman_Ovetchkin"]
[Result "0-1"]
[WhiteElo "2471"]
[BlackElo "2693"]
[TimeControl "180+1"]
[EndTime "9:14:59 PDT"]
[Termination "Roman_Ovetchkin won on time"]

1. e4 {[%clk 0:02:51.2]} 1... c6 {[%clk 0:03:00.1]} 2. d4 {[%clk 0:02:49]} 2...
d5 {[%clk 0:03:01]} 3. e5 {[%clk 0:02:49.4]} 3... Bf5 {[%clk 0:03:00.5]} 4. c4
{[%clk 0:02:49.4]} 4... e6 {[%clk 0:03:00.4]} 5. Nc3 {[%clk 0:02:49.5]} 5... Ne7
{[%clk 0:02:59.8]} 6. Nf3 {[%clk 0:02:49.9]} 6... Nd7 {[%clk 0:02:58.3]} 7. Nh4
{[%clk 0:02:48.6]} 7... dxc4 {[%clk 0:02:55.3]} 8. Bxc4 {[%clk 0:02:45.5]} 8...
Nb6 {[%clk 0:02:54.7]} 9. Bb3 {[%clk 0:02:43.3]} 9... Qd7 {[%clk 0:02:50.8]} 10.
O-O {[%clk 0:02:31.2]} 10... Bg6 {[%clk 0:02:37]} 11. Bg5 {[%clk 0:02:30.4]}
11... Nf5 {[%clk 0:02:28.3]} 12. Nxf5 {[%clk 0:02:21.9]} 12... Bxf5 {[%clk
0:02:29.2]} 13. Qe2 {[%clk 0:02:21.8]} 13... Qxd4 {[%clk 0:02:16]} 14. Rad1
{[%clk 0:02:17.9]} 14... Qg4 {[%clk 0:02:15.7]} 15. Qe3 {[%clk 0:02:10.5]} 15...
h6 {[%clk 0:02:07.6]} 16. Bf4 {[%clk 0:02:02.3]} 16... Be7 {[%clk 0:01:55.6]}
17. h3 {[%clk 0:01:59.3]} 17... Qg6 {[%clk 0:01:55.1]} 18. Kh2 {[%clk
0:01:51.3]} 18... Nd5 {[%clk 0:01:30.5]} 19. Nxd5 {[%clk 0:01:41.4]} 19... exd5
{[%clk 0:01:30.7]} 20. g4 {[%clk 0:01:36.1]} 20... Be6 {[%clk 0:01:30.4]} 21.
Bg3 {[%clk 0:01:35.7]} 21... h5 {[%clk 0:01:30.3]} 22. g5 {[%clk 0:01:01]} 22...
Bxg5 {[%clk 0:01:25.3]} 23. f4 {[%clk 0:00:56]} 23... h4 {[%clk 0:01:21.3]} 24.
Be1 {[%clk 0:00:45.2]} 24... Be7 {[%clk 0:01:20.7]} 25. Rg1 {[%clk 0:00:29.5]}
25... Qh7 {[%clk 0:01:09.4]} 26. Rg2 {[%clk 0:00:16.8]} 26... Bf5 {[%clk
0:01:02.1]} 27. Bc3 {[%clk 0:00:11.4]} 27... Qh6 {[%clk 0:00:52.4]} 28. Rdg1
{[%clk 0:00:09.9]} 28... g6 {[%clk 0:00:52.6]} 29. e6 {[%clk 0:00:09.8]} 29...
f6 {[%clk 0:00:52.9]} 30. Bd4 {[%clk 0:00:04.3]} 30... Bd6 {[%clk 0:00:49.5]}
31. Rf1 {[%clk 0:00:03.8]} 31... O-O {[%clk 0:00:47.9]} 32. Bc2 {[%clk 0:00:02]}
32... Bxc2 {[%clk 0:00:46.9]} 33. Rxc2 {[%clk 0:00:02.9]} 33... Rae8 {[%clk
0:00:43]} 34. Re2 {[%clk 0:00:02.9]} 34... b6 {[%clk 0:00:41.6]} 0-1

[Event "Early-Titled-Tuesday-Blitz-October-10-2023"]
[Site "Chess.com"]
[Date "2023.10.10"]
[Round "7"]
[White "Cayse"]
[Black "attack2mateU"]
[Result "1-0"]
[WhiteElo "2851"]
[BlackElo "2741"]
[TimeControl "180+1"]
[EndTime "9:15:01 PDT"]
[Termination "Cayse won by resignation"]

1. e4 {[%clk 0:03:00.9]} 1... c5 {[%clk 0:02:59.9]} 2. Nf3 {[%clk 0:03:01.3]}
2... d6 {[%clk 0:03:00.3]} 3. Bb5+ {[%clk 0:03:01.2]} 3... Bd7 {[%clk
0:02:57.6]} 4. Bxd7+ {[%clk 0:03:00.7]} 4... Nxd7 {[%clk 0:02:58.5]} 5. O-O
{[%clk 0:02:59.7]} 5... Ngf6 {[%clk 0:02:58.9]} 6. Qe2 {[%clk 0:02:59.6]} 6...
e6 {[%clk 0:02:58.3]} 7. d4 {[%clk 0:02:58.4]} 7... cxd4 {[%clk 0:02:57.2]} 8.
Nxd4 {[%clk 0:02:59.3]} 8... Rc8 {[%clk 0:02:47.7]} 9. c4 {[%clk 0:02:58.9]}
9... Be7 {[%clk 0:02:47.7]} 10. b3 {[%clk 0:02:56.9]} 10... Qa5 {[%clk
0:02:41.1]} 11. Bb2 {[%clk 0:02:55.1]} 11... O-O {[%clk 0:02:37.8]} 12. Nc3
{[%clk 0:02:54.5]} 12... Rfe8 {[%clk 0:02:22.9]} 13. Rad1 {[%clk 0:02:52.5]}
13... a6 {[%clk 0:02:17.6]} 14. Kh1 {[%clk 0:02:48.8]} 14... Qh5 {[%clk
0:01:59.7]} 15. f3 {[%clk 0:02:48.2]} 15... Bd8 {[%clk 0:01:10.6]} 16. g4 {[%clk
0:02:23.3]} 16... Qh4 {[%clk 0:00:52.3]} 17. Qg2 {[%clk 0:02:08]} 17... Bc7
{[%clk 0:00:52.3]} 18. Bc1 {[%clk 0:01:59.5]} 18... Ne5 {[%clk 0:00:50.2]} 19.
Bf4 {[%clk 0:01:51.2]} 19... Ng6 {[%clk 0:00:38.5]} 20. Bg3 {[%clk 0:01:46]}
20... Qg5 {[%clk 0:00:39.2]} 21. Nce2 {[%clk 0:01:43.9]} 21... d5 {[%clk
0:00:34.4]} 22. e5 {[%clk 0:00:49.9]} 22... Nxe5 {[%clk 0:00:29.8]} 23. f4
{[%clk 0:00:49.7]} 23... Qxg4 {[%clk 0:00:22.6]} 24. h3 {[%clk 0:00:31]} 24...
Qh5 {[%clk 0:00:19.8]} 25. fxe5 {[%clk 0:00:30.5]} 25... Bxe5 {[%clk 0:00:20.7]}
26. Rg1 {[%clk 0:00:24.7]} 26... Ne4 {[%clk 0:00:18.7]} 27. Bh2 {[%clk 0:00:19]}
27... g6 {[%clk 0:00:12.5]} 28. Rdf1 {[%clk 0:00:17.3]} 28... f5 {[%clk
0:00:09.4]} 29. Bxe5 {[%clk 0:00:16.1]} 1-0